[Event "*** Titled Tuesday 3|2 Blitz"]
[Site "Chess.com"]
[Date "2016.10.04"]
[Round "3"]
[White "dretch"]
[Black "Izoria123"]
[Result "1-0"]
[WhiteElo "2654"]
[BlackElo "2565"]
[TimeControl "180+2"]
[EndTime "17:32:43 PDT"]
[Termination "dretch won by resignation"]

1. d4 {[%clk 0:03:01.9]} 1... Nf6 {[%clk 0:02:59.7]} 2. c4 {[%clk 0:03:03]} 2...
g6 {[%clk 0:02:59.7]} 3. Nc3 {[%clk 0:03:04.4]} 3... Bg7 {[%clk 0:03:00.4]} 4.
e4 {[%clk 0:03:05.8]} 4... d6 {[%clk 0:03:01.7]} 5. Nf3 {[%clk 0:03:07.1]} 5...
O-O {[%clk 0:03:03.2]} 6. h3 {[%clk 0:03:08.4]} 6... c6 {[%clk 0:02:54.4]} 7.
Bg5 {[%clk 0:03:08.5]} 7... a6 {[%clk 0:02:53.4]} 8. Bd3 {[%clk 0:03:08.7]} 8...
b5 {[%clk 0:02:53.8]} 9. O-O {[%clk 0:03:09.2]} 9... bxc4 {[%clk 0:02:52.5]} 10.
Bxc4 {[%clk 0:03:10.2]} 10... Nxe4 {[%clk 0:02:33.1]} 11. Nxe4 {[%clk
0:03:10.5]} 11... d5 {[%clk 0:02:34.3]} 12. Bd3 {[%clk 0:03:11.7]} 12... dxe4
{[%clk 0:02:35.5]} 13. Bxe4 {[%clk 0:03:13.6]} 13... Be6 {[%clk 0:02:36.3]} 14.
Re1 {[%clk 0:03:07.8]} 14... Re8 {[%clk 0:02:35]} 15. Qc2 {[%clk 0:03:03.2]}
15... Bd5 {[%clk 0:02:16.7]} 16. Bxd5 {[%clk 0:02:59.7]} 16... cxd5 {[%clk
0:02:16.3]} 17. Rac1 {[%clk 0:02:59.3]} 17... Nd7 {[%clk 0:02:09.7]} 18. Qc7
{[%clk 0:02:58.8]} 18... Nf6 {[%clk 0:01:56]} 19. Qxd8 {[%clk 0:02:58.6]} 19...
Raxd8 {[%clk 0:01:57.9]} 20. Rc7 {[%clk 0:02:56.7]} 20... Ne4 {[%clk 0:01:31.8]}
21. Bxe7 {[%clk 0:02:54.7]} 21... Rc8 {[%clk 0:01:24.9]} 22. Rec1 {[%clk
0:02:53.3]} 22... Rb8 {[%clk 0:01:25.8]} 23. b3 {[%clk 0:02:52.7]} 23... f6
{[%clk 0:01:16.9]} 24. R1c6 {[%clk 0:02:42.8]} 24... a5 {[%clk 0:01:16.2]} 25.
g4 {[%clk 0:02:42]} 25... a4 {[%clk 0:01:15.1]} 26. b4 {[%clk 0:02:42.2]} 26...
a3 {[%clk 0:01:15.4]} 27. Ra6 {[%clk 0:02:41]} 27... Bf8 {[%clk 0:01:12.8]} 28.
Bxf8 {[%clk 0:02:38.5]} 28... Rxf8 {[%clk 0:01:09.9]} 29. Raa7 {[%clk
0:02:36.6]} 29... Rfc8 {[%clk 0:01:04.6]} 30. Rg7+ {[%clk 0:02:36.6]} 30... Kf8
{[%clk 0:01:05.3]} 31. Rxh7 {[%clk 0:02:37.6]} 31... Kg8 {[%clk 0:01:06.9]} 32.
Rag7+ {[%clk 0:02:36.9]} 32... Kf8 {[%clk 0:01:07.9]} 33. Nh4 {[%clk 0:02:38.1]}
1-0

[Event "*** Titled Tuesday 3|2 Blitz"]
[Site "Chess.com"]
[Date "2016.10.04"]
[Round "3"]
[White "Jahonas"]
[Black "Opening_Prep"]
[Result "0-1"]
[WhiteElo "2162"]
[BlackElo "2151"]
[TimeControl "180+2"]
[EndTime "17:33:11 PDT"]
[Termination "Opening_Prep won by resignation"]

1. d4 {[%clk 0:03:01.9]} 1... d5 {[%clk 0:02:59.8]} 2. Nf3 {[%clk 0:03:02.8]}
2... Nf6 {[%clk 0:03:00.1]} 3. c4 {[%clk 0:03:02.8]} 3... e6 {[%clk 0:03:01]} 4.
Nc3 {[%clk 0:03:04]} 4... Be7 {[%clk 0:02:59.3]} 5. cxd5 {[%clk 0:03:05]} 5...
exd5 {[%clk 0:02:59.7]} 6. Bf4 {[%clk 0:03:05.8]} 6... O-O {[%clk 0:02:59.5]} 7.
e3 {[%clk 0:03:07.2]} 7... Bf5 {[%clk 0:02:59.4]} 8. Bd3 {[%clk 0:03:08.2]} 8...
Bxd3 {[%clk 0:02:58.7]} 9. Qxd3 {[%clk 0:03:10.1]} 9... Nbd7 {[%clk 0:02:51]}
10. O-O {[%clk 0:03:09.5]} 10... c6 {[%clk 0:02:50.2]} 11. Rfc1 {[%clk
0:03:02.2]} 11... Re8 {[%clk 0:02:47.9]} 12. Rab1 {[%clk 0:03:02]} 12... a5
{[%clk 0:02:32.3]} 13. a3 {[%clk 0:02:57.5]} 13... a4 {[%clk 0:02:19.1]} 14. h3
{[%clk 0:02:55.3]} 14... Nf8 {[%clk 0:02:03.5]} 15. Ne5 {[%clk 0:02:50.6]} 15...
Ng6 {[%clk 0:01:52.8]} 16. Nxg6 {[%clk 0:02:50.9]} 16... hxg6 {[%clk 0:01:52.9]}
17. b4 {[%clk 0:02:52.8]} 17... axb3 {[%clk 0:01:46]} 18. a4 {[%clk 0:02:52.8]}
18... Qb6 {[%clk 0:00:44.8]} 19. Qd1 {[%clk 0:02:47]} 19... b2 {[%clk
0:00:44.7]} 20. Rc2 {[%clk 0:02:47.5]} 20... Ba3 {[%clk 0:00:45.3]} 21. Qd3
{[%clk 0:02:42.2]} 21... Qb3 {[%clk 0:00:41.2]} 22. f3 {[%clk 0:02:37.1]} 22...
Rxa4 {[%clk 0:00:39.8]} 23. Be5 {[%clk 0:02:21.9]} 23... Rc4 {[%clk 0:00:30.6]}
24. Bxf6 {[%clk 0:02:21.5]} 24... gxf6 {[%clk 0:00:30.7]} 25. Qd2 {[%clk
0:02:06.5]} 25... b5 {[%clk 0:00:10.8]} 26. Qe1 {[%clk 0:01:38.1]} 26... b4
{[%clk 0:00:11.3]} 27. Nxd5 {[%clk 0:01:38.3]} 27... cxd5 {[%clk 0:00:11.5]} 28.
Re2 {[%clk 0:01:37.1]} 28... Rc1 {[%clk 0:00:11.7]} 0-1

[Event "*** Titled Tuesday 3|2 Blitz"]
[Site "Chess.com"]
[Date "2016.10.04"]
[Round "3"]
[White "NIGWAPO"]
[Black "Noukii"]
[Result "1/2-1/2"]
[WhiteElo "2435"]
[BlackElo "2598"]
[TimeControl "180+2"]
[EndTime "17:34:07 PDT"]
[Termination "Game drawn by agreement"]

1. e4 {[%clk 0:02:57.3]} 1... Nf6 {[%clk 0:03:00.9]} 2. e5 {[%clk 0:02:56.2]}
2... Nd5 {[%clk 0:03:02.3]} 3. d4 {[%clk 0:02:57.9]} 3... d6 {[%clk 0:03:03.8]}
4. Nf3 {[%clk 0:02:59.3]} 4... g6 {[%clk 0:03:05]} 5. c4 {[%clk 0:02:59]} 5...
Nb6 {[%clk 0:03:06.5]} 6. exd6 {[%clk 0:03:00.6]} 6... cxd6 {[%clk 0:03:08.4]}
7. Nc3 {[%clk 0:03:01.9]} 7... Bg7 {[%clk 0:03:10.1]} 8. Be3 {[%clk 0:03:02.3]}
8... O-O {[%clk 0:03:11.7]} 9. Be2 {[%clk 0:03:02.9]} 9... Nc6 {[%clk
0:03:13.3]} 10. O-O {[%clk 0:03:03.2]} 10... Bg4 {[%clk 0:03:14.7]} 11. b3
{[%clk 0:03:04.1]} 11... d5 {[%clk 0:03:15.9]} 12. c5 {[%clk 0:03:04.5]} 12...
Nc8 {[%clk 0:03:17.3]} 13. h3 {[%clk 0:03:05.4]} 13... Bxf3 {[%clk 0:03:18.2]}
14. Bxf3 {[%clk 0:03:06.7]} 14... e6 {[%clk 0:03:20.1]} 15. Qd2 {[%clk
0:03:06.9]} 15... N8e7 {[%clk 0:03:21.5]} 16. Ne2 {[%clk 0:03:05.3]} 16... Nf5
{[%clk 0:03:21.6]} 17. b4 {[%clk 0:03:03.1]} 17... h6 {[%clk 0:03:16.2]} 18. b5
{[%clk 0:03:02.9]} 18... Na5 {[%clk 0:03:17.2]} 19. Bf4 {[%clk 0:02:54.9]} 19...
Nc4 {[%clk 0:03:16]} 20. Qd3 {[%clk 0:02:55.3]} 20... Qf6 {[%clk 0:03:14.1]} 21.
Rac1 {[%clk 0:01:50.9]} 21... g5 {[%clk 0:02:58.9]} 22. Bh2 {[%clk 0:01:48.3]}
22... Nxd4 {[%clk 0:02:53.7]} 23. Nxd4 {[%clk 0:01:45.5]} 23... Qxd4 {[%clk
0:02:55]} 24. Qxd4 {[%clk 0:01:45]} 24... Bxd4 {[%clk 0:02:56.9]} 25. c6 {[%clk
0:01:46.4]} 25... bxc6 {[%clk 0:02:56.1]} 26. bxc6 {[%clk 0:01:47.7]} 26... Rac8
{[%clk 0:02:57.7]} 27. Rfd1 {[%clk 0:01:47.4]} 27... Bb6 {[%clk 0:02:55.9]} 28.
h4 {[%clk 0:01:37.6]} 28... Rxc6 {[%clk 0:02:51.5]} 29. hxg5 {[%clk 0:01:38.9]}
29... hxg5 {[%clk 0:02:51.6]} 30. a4 {[%clk 0:01:37]} 30... Rfc8 {[%clk
0:02:52.1]} 31. Bg4 {[%clk 0:01:36]} 31... Kg7 {[%clk 0:02:49.4]} 32. Bg3 {[%clk
0:01:34.6]} 32... Kg6 {[%clk 0:02:44.7]} 33. Be2 {[%clk 0:01:33.4]} 33... Nb2
{[%clk 0:02:44]} 34. Rxc6 {[%clk 0:01:32.8]} 34... Rxc6 {[%clk 0:02:45.9]} 35.
Rb1 {[%clk 0:01:33.7]} 35... Rc2 {[%clk 0:02:44.7]} 36. Bb5 {[%clk 0:01:27.4]}
36... Kf6 {[%clk 0:02:29]} 37. Kh1 {[%clk 0:01:25.1]} 37... Nc4 {[%clk
0:02:24.8]} 38. f4 {[%clk 0:01:20.7]} 38... Ne3 {[%clk 0:02:20.4]} 39. fxg5+
{[%clk 0:01:13.7]} 39... Kxg5 {[%clk 0:02:22.3]} 40. Be8 {[%clk 0:01:06.3]}
40... Rb2 {[%clk 0:02:15.2]} 41. Rxb2 {[%clk 0:01:01.7]} 41... f5 {[%clk
0:02:15.1]} 42. Bf2 {[%clk 0:00:49.3]} 42... f4 {[%clk 0:02:13.4]} 43. Bc6
{[%clk 0:00:45.5]} 43... Bd4 {[%clk 0:02:07.4]} 44. Rb7 {[%clk 0:00:42.3]} 44...
Kf5 {[%clk 0:02:02.9]} 45. Rf7+ {[%clk 0:00:37.6]} 45... Ke5 {[%clk 0:02:01.5]}
46. g3 {[%clk 0:00:19.2]} 1/2-1/2

[Event "*** Titled Tuesday 3|2 Blitz"]
[Site "Chess.com"]
[Date "2016.10.04"]
[Round "3"]
[White "platy3"]
[Black "michaelk123"]
[Result "1-0"]
[WhiteElo "2745"]
[BlackElo "2234"]
[TimeControl "180+2"]
[EndTime "17:34:19 PDT"]
[Termination "platy3 won on time"]

1. e4 {[%clk 0:03:02]} 1... c5 {[%clk 0:03:00.7]} 2. Nf3 {[%clk 0:03:01.4]} 2...
e6 {[%clk 0:03:00.5]} 3. d4 {[%clk 0:03:00.5]} 3... cxd4 {[%clk 0:03:02.2]} 4.
Nxd4 {[%clk 0:03:02.4]} 4... Nc6 {[%clk 0:03:03.6]} 5. Nc3 {[%clk 0:03:01]} 5...
Qc7 {[%clk 0:03:04.9]} 6. Be3 {[%clk 0:02:59.2]} 6... a6 {[%clk 0:03:05.6]} 7.
Qd2 {[%clk 0:02:59.1]} 7... Nf6 {[%clk 0:03:06.3]} 8. f4 {[%clk 0:02:59.9]} 8...
b5 {[%clk 0:02:58.7]} 9. e5 {[%clk 0:02:59.8]} 9... b4 {[%clk 0:03:00]} 10. Ncb5
{[%clk 0:03:01.1]} 10... axb5 {[%clk 0:02:53.9]} 11. Nxb5 {[%clk 0:03:03]} 11...
Qb8 {[%clk 0:02:52.8]} 12. exf6 {[%clk 0:03:04.1]} 12... gxf6 {[%clk 0:02:53.9]}
13. c4 {[%clk 0:03:05.7]} 13... bxc3 {[%clk 0:02:50.7]} 14. bxc3 {[%clk
0:03:07.6]} 14... Ba6 {[%clk 0:01:46.9]} 15. Rb1 {[%clk 0:03:07.6]} 15... Be7
{[%clk 0:01:40.1]} 16. Rb2 {[%clk 0:03:08.4]} 16... Rg8 {[%clk 0:01:04.6]} 17.
Bd3 {[%clk 0:03:01.1]} 17... Bxb5 {[%clk 0:00:35.2]} 18. Bxb5 {[%clk 0:02:58.5]}
18... Rxa2 {[%clk 0:00:26.5]} 19. Rxa2 {[%clk 0:02:55.9]} 19... Qxb5 {[%clk
0:00:27.6]} 20. Kf2 {[%clk 0:02:30.8]} 20... Bd8 {[%clk 0:00:20.7]} 21. Rd1
{[%clk 0:02:29.1]} 21... Ne7 {[%clk 0:00:21.4]} 22. c4 {[%clk 0:02:26.1]} 22...
Qc6 {[%clk 0:00:21.6]} 23. Kg1 {[%clk 0:02:20.9]} 23... Nf5 {[%clk 0:00:21.5]}
24. Kh1 {[%clk 0:01:40]} 24... Nh4 {[%clk 0:00:15.9]} 25. Rg1 {[%clk 0:01:40]}
25... f5 {[%clk 0:00:14]} 26. Qf2 {[%clk 0:01:36.7]} 26... Rg4 {[%clk
0:00:13.9]} 27. h3 {[%clk 0:01:35.9]} 27... Rg6 {[%clk 0:00:08.9]} 28. Kh2
{[%clk 0:01:36.1]} 28... Qxc4 {[%clk 0:00:08.2]} 29. Ra8 {[%clk 0:01:34]} 29...
Qc6 {[%clk 0:00:08.6]} 30. Rxd8+ {[%clk 0:01:34.5]} 30... Kxd8 {[%clk
0:00:08.4]} 31. Qxh4+ {[%clk 0:01:36.4]} 31... Ke8 {[%clk 0:00:07.3]} 32. Qf2
{[%clk 0:01:36]} 32... Qe4 {[%clk 0:00:07.8]} 33. Rc1 {[%clk 0:01:35.7]} 33...
Kf8 {[%clk 0:00:08.5]} 34. Re1 {[%clk 0:01:18.6]} 34... Qd5 {[%clk 0:00:07.5]}
35. Bc5+ {[%clk 0:01:16.8]} 35... d6 {[%clk 0:00:05.8]} 36. Be3 {[%clk
0:01:15.6]} 36... h6 {[%clk 0:00:02.4]} 37. Re2 {[%clk 0:01:16.6]} 1-0

[Event "*** Titled Tuesday 3|2 Blitz"]
[Site "Chess.com"]
[Date "2016.10.04"]
[Round "3"]
[White "SwiftyMcBishop"]
[Black "ka1ser64"]
[Result "1-0"]
[WhiteElo "2077"]
[BlackElo "2249"]
[TimeControl "180+2"]
[EndTime "17:34:27 PDT"]
[Termination "SwiftyMcBishop won by resignation"]

1. e4 {[%clk 0:03:02]} 1... e6 {[%clk 0:03:01.1]} 2. d4 {[%clk 0:03:02.8]} 2...
d5 {[%clk 0:03:02.6]} 3. Nc3 {[%clk 0:03:03.2]} 3... Nc6 {[%clk 0:03:03.8]} 4.
Nf3 {[%clk 0:02:58.3]} 4... Nf6 {[%clk 0:03:05.2]} 5. Bd3 {[%clk 0:02:54.2]}
5... Bb4 {[%clk 0:03:05.6]} 6. Bg5 {[%clk 0:02:42.2]} 6... dxe4 {[%clk
0:02:46.2]} 7. Bxe4 {[%clk 0:02:39.1]} 7... h6 {[%clk 0:02:38.4]} 8. Bxf6 {[%clk
0:02:30.6]} 8... Qxf6 {[%clk 0:02:40.3]} 9. O-O {[%clk 0:02:31]} 9... O-O {[%clk
0:02:33.1]} 10. a3 {[%clk 0:02:20.8]} 10... Be7 {[%clk 0:02:27.1]} 11. d5 {[%clk
0:02:18.7]} 11... Ne5 {[%clk 0:02:14.3]} 12. Re1 {[%clk 0:01:58]} 12... Nc4
{[%clk 0:01:50.4]} 13. dxe6 {[%clk 0:01:36.9]} 13... fxe6 {[%clk 0:01:41.2]} 14.
Nd5 {[%clk 0:01:23.3]} 14... Qf7 {[%clk 0:01:16.1]} 15. Bg6 {[%clk 0:01:16.8]}
15... exd5 {[%clk 0:00:56.4]} 16. Bxf7+ {[%clk 0:01:15.1]} 16... Rxf7 {[%clk
0:00:58.3]} 17. Qxd5 {[%clk 0:01:13]} 17... Nb6 {[%clk 0:00:55.5]} 18. Qb3
{[%clk 0:01:10.1]} 18... Kf8 {[%clk 0:00:52.9]} 19. Ne5 {[%clk 0:00:55.9]} 19...
Rf6 {[%clk 0:00:53.3]} 20. Qe3 {[%clk 0:00:43.8]} 20... Nd5 {[%clk 0:00:35]} 21.
Qe4 {[%clk 0:00:36.3]} 21... Nf4 {[%clk 0:00:20.3]} 22. Nd7+ {[%clk 0:00:21.5]}
22... Bxd7 {[%clk 0:00:21.3]} 23. Qxe7+ {[%clk 0:00:22.6]} 23... Kg8 {[%clk
0:00:22.1]} 24. Qxd7 {[%clk 0:00:24]} 24... Raf8 {[%clk 0:00:23.3]} 25. Re7
{[%clk 0:00:23.2]} 25... Nh5 {[%clk 0:00:23.7]} 26. f3 {[%clk 0:00:20.1]} 26...
Rg6 {[%clk 0:00:24.6]} 27. Qd5+ {[%clk 0:00:19.6]} 27... Kh7 {[%clk 0:00:25.4]}
28. Rae1 {[%clk 0:00:18.5]} 28... Nf4 {[%clk 0:00:25.5]} 29. Qd2 {[%clk
0:00:15.3]} 29... Nxg2 {[%clk 0:00:24.6]} 30. Qxg2 {[%clk 0:00:15.6]} 30...
Rxg2+ {[%clk 0:00:26.5]} 31. Kxg2 {[%clk 0:00:17.5]} 1-0

[Event "*** Titled Tuesday 3|2 Blitz"]
[Site "Chess.com"]
[Date "2016.10.04"]
[Round "3"]
[White "Schwarzschidl"]
[Black "FearlessKing64"]
[Result "1-0"]
[WhiteElo "2332"]
[BlackElo "2193"]
[TimeControl "180+2"]
[EndTime "17:34:31 PDT"]
[Termination "Schwarzschidl won by checkmate"]

1. e4 {[%clk 0:03:02]} 1... c5 {[%clk 0:02:59.9]} 2. Nf3 {[%clk 0:03:02.8]} 2...
d6 {[%clk 0:03:00.9]} 3. d4 {[%clk 0:03:04.4]} 3... cxd4 {[%clk 0:03:02.8]} 4.
Nxd4 {[%clk 0:03:06]} 4... Nf6 {[%clk 0:03:04.2]} 5. Nc3 {[%clk 0:03:07.6]} 5...
a6 {[%clk 0:03:05.7]} 6. Bg5 {[%clk 0:03:09.1]} 6... e6 {[%clk 0:03:06.8]} 7.
Qd2 {[%clk 0:03:10.6]} 7... Be7 {[%clk 0:03:07.3]} 8. O-O-O {[%clk 0:03:10.9]}
8... Nbd7 {[%clk 0:03:08.5]} 9. f3 {[%clk 0:03:11.6]} 9... Qc7 {[%clk
0:03:09.2]} 10. h4 {[%clk 0:03:12.6]} 10... h6 {[%clk 0:03:08.3]} 11. Be3 {[%clk
0:03:12.3]} 11... b5 {[%clk 0:03:09.2]} 12. g4 {[%clk 0:03:12.7]} 12... b4
{[%clk 0:03:09.3]} 13. Nce2 {[%clk 0:03:13.6]} 13... Bb7 {[%clk 0:03:08.5]} 14.
Rg1 {[%clk 0:03:14.4]} 14... d5 {[%clk 0:03:09.8]} 15. g5 {[%clk 0:03:14]} 15...
hxg5 {[%clk 0:03:07.5]} 16. hxg5 {[%clk 0:03:15.9]} 16... Nh5 {[%clk 0:02:49.5]}
17. g6 {[%clk 0:02:57.6]} 17... Nc5 {[%clk 0:02:07.3]} 18. gxf7+ {[%clk
0:02:52.8]} 18... Kxf7 {[%clk 0:02:08.5]} 19. Nf4 {[%clk 0:01:13.6]} 19... Nxf4
{[%clk 0:02:04.2]} 20. Bxf4 {[%clk 0:01:15.5]} 20... e5 {[%clk 0:02:02.4]} 21.
Bg3 {[%clk 0:01:14.1]} 21... b3 {[%clk 0:01:49.6]} 22. axb3 {[%clk 0:01:00]}
22... dxe4 {[%clk 0:01:50.3]} 23. Bc4+ {[%clk 0:00:58.2]} 23... Ke8 {[%clk
0:01:35.7]} 24. Nf5 {[%clk 0:00:51.6]} 24... g6 {[%clk 0:01:14.7]} 25. Qc3
{[%clk 0:00:42.7]} 25... gxf5 {[%clk 0:00:53.3]} 26. Bxe5 {[%clk 0:00:42.7]}
26... Qc6 {[%clk 0:00:27.1]} 27. Bxh8 {[%clk 0:00:41.2]} 27... Qh6+ {[%clk
0:00:20]} 28. Kb1 {[%clk 0:00:40.1]} 28... exf3 {[%clk 0:00:20.7]} 29. Rg8+
{[%clk 0:00:38.3]} 29... Bf8 {[%clk 0:00:20.2]} 30. Bg7 {[%clk 0:00:36.1]} 30...
Qxg7 {[%clk 0:00:18.3]} 31. Qxg7 {[%clk 0:00:36.7]} 31... Nd7 {[%clk 0:00:15.9]}
32. Qxd7# {[%clk 0:00:36.5]} 1-0

[Event "*** Titled Tuesday 3|2 Blitz"]
[Site "Chess.com"]
[Date "2016.10.04"]
[Round "3"]
[White "johnathan113"]
[Black "ZEN-22"]
[Result "0-1"]
[WhiteElo "2279"]
[BlackElo "2256"]
[TimeControl "180+2"]
[EndTime "17:34:48 PDT"]
[Termination "ZEN-22 won on time"]

1. d4 {[%clk 0:03:02]} 1... c5 {[%clk 0:03:00.3]} 2. dxc5 {[%clk 0:03:03]} 2...
e6 {[%clk 0:03:00.9]} 3. Nc3 {[%clk 0:03:03.7]} 3... f5 {[%clk 0:03:00]} 4. e4
{[%clk 0:03:02.6]} 4... Bxc5 {[%clk 0:02:58.6]} 5. exf5 {[%clk 0:02:58.4]} 5...
Qb6 {[%clk 0:02:56.6]} 6. Qh5+ {[%clk 0:02:42.7]} 6... Kf8 {[%clk 0:02:35.2]} 7.
Nh3 {[%clk 0:02:34.3]} 7... Nf6 {[%clk 0:02:34.6]} 8. Qf3 {[%clk 0:02:34.1]}
8... Nc6 {[%clk 0:02:35]} 9. fxe6 {[%clk 0:02:24.4]} 9... Nd4 {[%clk 0:02:35.2]}
10. Qd3 {[%clk 0:02:16.9]} 10... dxe6 {[%clk 0:02:32.7]} 11. Ng5 {[%clk
0:02:02.3]} 11... e5 {[%clk 0:02:30]} 12. Qc4 {[%clk 0:01:36.5]} 12... Qc7
{[%clk 0:02:07.7]} 13. Bd3 {[%clk 0:01:16.9]} 13... Nxc2+ {[%clk 0:02:07.6]} 14.
Kf1 {[%clk 0:01:09.3]} 14... Nxa1 {[%clk 0:02:02.2]} 15. Nb5 {[%clk 0:01:10.4]}
15... Qe7 {[%clk 0:02:01.1]} 16. Bd2 {[%clk 0:00:56.5]} 16... h6 {[%clk
0:01:59]} 17. Ne4 {[%clk 0:00:49.9]} 17... Nxe4 {[%clk 0:01:59.6]} 18. Qxe4
{[%clk 0:00:51.8]} 18... Qf6 {[%clk 0:01:50.5]} 19. f3 {[%clk 0:00:43.4]} 19...
Bd7 {[%clk 0:01:47.2]} 20. Nc7 {[%clk 0:00:43]} 20... Bc6 {[%clk 0:01:43.7]} 21.
Qc4 {[%clk 0:00:39.6]} 21... Bd6 {[%clk 0:01:40.6]} 22. Nxa8 {[%clk 0:00:36.2]}
22... Ke7 {[%clk 0:01:40.9]} 23. Kf2 {[%clk 0:00:25.8]} 23... Rc8 {[%clk
0:01:36.7]} 24. Rxa1 {[%clk 0:00:22.7]} 24... Bxf3 {[%clk 0:01:30.1]} 25. Qxc8
{[%clk 0:00:19.8]} 25... Bg4+ {[%clk 0:01:27]} 26. Bf5 {[%clk 0:00:21]} 26...
Bxf5 {[%clk 0:01:26.7]} 27. Qxb7+ {[%clk 0:00:22.2]} 27... Kf8 {[%clk
0:01:18.5]} 28. Kg1 {[%clk 0:00:18.8]} 28... Qg6 {[%clk 0:01:10.1]} 29. Rf1
{[%clk 0:00:17.5]} 29... Kg8 {[%clk 0:01:10.6]} 30. Qxa7 {[%clk 0:00:12.2]}
30... Be4 {[%clk 0:01:08.8]} 31. Rf2 {[%clk 0:00:11.6]} 31... Kh7 {[%clk
0:01:07.3]} 32. Nc7 {[%clk 0:00:10.8]} 32... Bc6 {[%clk 0:00:58]} 33. Na6 {[%clk
0:00:08.8]} 33... Qb1+ {[%clk 0:00:53.8]} 34. Rf1 {[%clk 0:00:10.1]} 34... Qd3
{[%clk 0:00:53]} 35. Be3 {[%clk 0:00:07.7]} 35... Qe2 {[%clk 0:00:51.7]} 36. Bf2
{[%clk 0:00:07.6]} 36... Qe4 {[%clk 0:00:51]} 0-1

[Event "*** Titled Tuesday 3|2 Blitz"]
[Site "Chess.com"]
[Date "2016.10.04"]
[Round "3"]
[White "Newlight1"]
[Black "maciek_92"]
[Result "0-1"]
[WhiteElo "2511"]
[BlackElo "2610"]
[TimeControl "180+2"]
[EndTime "17:34:51 PDT"]
[Termination "maciek_92 won on time"]

1. d4 {[%clk 0:02:59.2]} 1... Nf6 {[%clk 0:03:00.5]} 2. c4 {[%clk 0:02:54.9]}
2... e6 {[%clk 0:03:01.6]} 3. Nf3 {[%clk 0:02:55]} 3... b6 {[%clk 0:03:02.5]} 4.
Nc3 {[%clk 0:02:54.2]} 4... Bb4 {[%clk 0:03:01]} 5. e3 {[%clk 0:02:49.4]} 5...
O-O {[%clk 0:03:01.2]} 6. Bd3 {[%clk 0:02:40.4]} 6... d5 {[%clk 0:03:01.5]} 7.
O-O {[%clk 0:02:16]} 7... Ba6 {[%clk 0:03:02]} 8. cxd5 {[%clk 0:02:09.1]} 8...
exd5 {[%clk 0:03:03.9]} 9. Bxa6 {[%clk 0:02:08.9]} 9... Nxa6 {[%clk 0:03:05.8]}
10. Qd3 {[%clk 0:02:09.6]} 10... Qc8 {[%clk 0:03:01.1]} 11. Ne5 {[%clk
0:01:55.5]} 11... c5 {[%clk 0:02:57.4]} 12. Bd2 {[%clk 0:01:52.4]} 12... Re8
{[%clk 0:02:54.6]} 13. Rac1 {[%clk 0:01:50.1]} 13... Bxc3 {[%clk 0:02:48.1]} 14.
bxc3 {[%clk 0:01:25.4]} 14... c4 {[%clk 0:02:44.7]} 15. Qc2 {[%clk 0:01:25.4]}
15... b5 {[%clk 0:02:42.4]} 16. Rb1 {[%clk 0:01:25.8]} 16... Nc7 {[%clk
0:02:42.4]} 17. f3 {[%clk 0:01:23.7]} 17... Qb7 {[%clk 0:02:29.7]} 18. g4 {[%clk
0:01:18.6]} 18... Ne6 {[%clk 0:02:20.9]} 19. h4 {[%clk 0:01:17.3]} 19... g6
{[%clk 0:02:07.9]} 20. Kf2 {[%clk 0:01:08.7]} 20... a5 {[%clk 0:02:05.1]} 21. h5
{[%clk 0:01:04.1]} 21... Nd7 {[%clk 0:02:03.8]} 22. hxg6 {[%clk 0:01:03.2]}
22... hxg6 {[%clk 0:02:03.7]} 23. Nxg6 {[%clk 0:00:41.7]} 23... fxg6 {[%clk
0:02:05.6]} 24. Qxg6+ {[%clk 0:00:42.4]} 24... Ng7 {[%clk 0:02:07.3]} 25. Rh1
{[%clk 0:00:38.4]} 25... Nf8 {[%clk 0:02:08.8]} 26. Qh6 {[%clk 0:00:34.1]} 26...
Ra6 {[%clk 0:02:05.4]} 27. Qh8+ {[%clk 0:00:34.8]} 27... Kf7 {[%clk 0:02:06.7]}
28. a4 {[%clk 0:00:21.1]} 28... Rb6 {[%clk 0:01:49.4]} 29. axb5 {[%clk 0:00:21]}
29... Rxb5 {[%clk 0:01:50.1]} 30. Rxb5 {[%clk 0:00:22.2]} 30... Qxb5 {[%clk
0:01:51.6]} 31. g5 {[%clk 0:00:22.5]} 31... Qb2 {[%clk 0:01:48.1]} 32. Ke2
{[%clk 0:00:22.7]} 32... Ng6 {[%clk 0:01:46.4]} 33. Qh2 {[%clk 0:00:22.4]} 33...
Qc2 {[%clk 0:01:45]} 34. Qc7+ {[%clk 0:00:21.6]} 34... Re7 {[%clk 0:01:45.2]}
35. Qxa5 {[%clk 0:00:21.7]} 35... Nf4+ {[%clk 0:01:36.8]} 36. Kf1 {[%clk
0:00:04.3]} 36... Qd1+ {[%clk 0:01:34.1]} 37. Kf2 {[%clk 0:00:05]} 37... Qxd2+
{[%clk 0:01:33.9]} 38. Kg3 {[%clk 0:00:06.3]} 38... Qxe3 {[%clk 0:01:19.4]} 39.
Rh7 {[%clk 0:00:04.1]} 39... Kg6 {[%clk 0:00:53.4]} 0-1